[Event "French-ch U12-U14 2024"]
[Site "Agen"]
[Date "2024.04.15"]
[Round "3.5"]
[White "Fei, Emie"]
[Black "Duchatel, Cyrielle"]
[Result "1-0"]
[ECO "B22"]
[WhiteElo "1522"]
[BlackElo "1646"]
[Annotator "NA RC"]
[PlyCount "111"]
[EventDate "2024.04.14"]
[EventType "swiss"]
[EventCountry "FRA"]
[SourceTitle "playchess.com"]
[Source "ChessBase"]
[SourceQuality "1"]
[TimeControl "5400+30"]

1. e4 {[%emt 0:00:00]} c5 {[%emt 0:00:14]} 2. c3 {[%emt 0:00:12]} d5 {[%emt 0:00:18]} 3. exd5 {[%emt 0:00:18]} Qxd5 {[%emt 0:00:21]} 4. d4 {[%emt 0:00:53]} Nf6 {[%emt 0:00:37]} 5. Nf3 {[%emt 0:02:01]} e6 {[%emt 0:01:15]} 6. Be2 {[%emt 0:02:07]} Be7 {[%emt 0:01:03]} 7. O-O {[%emt 0:01:53]} O-O {[%emt 0:01:15]} 8. Bf4 {[%emt 0:02:20]} Nc6 {[%emt 0:01:57]} 9. Qd3 {[%emt 0:04:16]} cxd4 {[%emt 0:06:33]} 10. cxd4 {[%emt 0:02:26]} Nh5 {[%emt 0:06:15]} 11. Nc3 {[%emt 0:04:35]} Nxf4 {[%emt 0:02:18]} 12. Nxd5 {[%emt 0:00:18]} Nxd3 {[%emt 0:00:07]} 13. Nxe7+ {[%emt 0:00:28]} Nxe7 {[%emt 0:00:06]} 14. Bxd3 {[%emt 0:00:20]} Rd8 {[%emt 0:01:07]} 15. Rfd1 {[%emt 0:03:36]} Bd7 {[%emt 0:02:07]} 16. Bc4 {[%emt 0:01:42]} Bc6 {[%emt 0:01:00]} 17. Ne5 {[%emt 0:03:58]} Bd5 {[%emt 0:01:51]} 18. b3 {[%emt 0:03:22]} Nf5 {[%emt 0:01:37]} 19. g4 {[%emt 0:03:10]} Ne7 {[%emt 0:03:37]} 20. Bxd5 {[%emt 0:06:20]} Rxd5 {[%emt 0:00:21]} 21. Rac1 {[%emt 0:01:51]} f6 {[%emt 0:01:20]} 22. Nf3 {[%emt 0:01:03]} Nc6 {[%emt 0:00:39]} 23. Kf1 {[%emt 0:01:20]} Rad8 {[%emt 0:00:50]} 24. Ke2 {[%emt 0:01:22]} Kf8 {[%emt 0:03:08]} 25. Rc5 {[%emt 0:01:19]} Rxc5 {[%emt 0:01:37]} 26. dxc5 {[%emt 0:00:12]} Rxd1 {[%emt 0:00:08]} 27. Kxd1 {[%emt 0:00:34]} e5 {[%emt 0:00:15]} 28. Kd2 {[%emt 0:01:12]} Ke7 {[%emt 0:01:03]} 29. Ke3 {[%emt 0:01:25]} Ke6 {[%emt 0:00:53]} 30. Ke4 {[%emt 0:00:27]} g6 {[%emt 0:00:52]} 31. a3 {[%emt 0:02:09]} f5+ {[%emt 0:00:32]} 32. gxf5+ {[%emt 0:01:16]} gxf5+ {[%emt 0:00:05]} 33. Ke3 {[%emt 0:00:41]} Na5 {[%emt 0:00:30]} 34. Nd2 {[%emt 0:01:10]} Kd5 {[%emt 0:00:11]} 35. b4 {[%emt 0:01:32]} Nc4+ {[%emt 0:00:05]} 36. Nxc4 {[%emt 0:01:08]} Kxc4 {[%emt 0:00:05]} 37. Kd2 {[%emt 0:01:50]} Kb3 {[%emt 0:00:18]} 38. b5 {[%emt 0:00:30]} Kc4 {[%emt 0:00:14]} 39. c6 {[%emt 0:00:13]} Kxb5 {[%emt 0:01:39]} 40. c7 {[%emt 0:00:14]} Ka4 {[%emt 0:00:10]} 41. c8=Q {[%emt 0:00:18]} b5 {[%emt 0:00:13]} 42. Qa6+ {[%emt 0:00:22]} Kb3 {[%emt 0:00:09]} 43. Qxb5+ {[%emt 0:00:13]} Kxa3 {[%emt 0:00:12]} 44. Qa5+ {[%emt 0:00:36]} Kb3 {[%emt 0:00:15]} 45. Qxa7 {[%emt 0:00:13]} Kc4 {[%emt 0:00:09]} 46. Qxh7 {[%emt 0:00:38]} f4 {[%emt 0:00:22]} 47. Qe4+ {[%emt 0:00:16]} Kb3 {[%emt 0:00:11]} 48. Qxe5 {[%emt 0:00:21]} Kb4 {[%emt 0:00:14]} 49. Qc7 {[%emt 0:00:35]} Kb5 {[%emt 0:00:11]} 50. h4 {[%emt 0:00:14]} Kb4 {[%emt 0:00:09]} 51. h5 {[%emt 0:00:06]} Kb5 {[%emt 0:00:08]} 52. h6 {[%emt 0:00:07]} Kb4 {[%emt 0:00:06]} 53. h7 {[%emt 0:00:10]} Kb3 {[%emt 0:00:10]} 54. h8=R {[%emt 0:00:09]} Kb4 {[%emt 0:00:06]} 55. Rb8+ {[%emt 0:00:09]} Ka4 {[%emt 0:00:08]} 56. Qa7# {[%emt 0:00:21]} 1-0

[Event "French-ch U12-U14 2024"]
[Site "Agen"]
[Date "2024.04.15"]
[Round "3.7"]
[White "Gonzalez De Linares, Milan"]
[Black "Bat, Sodcetsen"]
[Result "1/2-1/2"]
[ECO "E18"]
[WhiteElo "1826"]
[BlackElo "2012"]
[Annotator "NA RC"]
[PlyCount "80"]
[EventDate "2024.04.14"]
[EventType "swiss"]
[EventCountry "FRA"]
[SourceTitle "playchess.com"]
[Source "ChessBase"]
[SourceQuality "1"]
[TimeControl "5400+30"]

1. d4 {[%emt 0:01:52]} Nf6 {[%emt 0:00:08]} 2. c4 {[%emt 0:00:03]} e6 {[%emt 0:00:06]} 3. Nf3 {[%emt 0:00:04]} b6 {[%emt 0:00:16]} 4. g3 {[%emt 0:00:20]} Bb7 {[%emt 0:00:11]} 5. Bg2 {[%emt 0:00:13]} Be7 {[%emt 0:00:17]} 6. O-O {[%emt 0:00:33]} O-O {[%emt 0:00:25]} 7. Nc3 {[%emt 0:00:15]} Ne4 {[%emt 0:00:32]} 8. Qd3 {[%emt 0:06:03]} Nxc3 {[%emt 0:00:55]} 9. bxc3 {[%emt 0:00:09]} d5 {[%emt 0:02:05]} 10. Bf4 {[%emt 0:03:55]} Nd7 {[%emt 0:00:54]} 11. cxd5 {[%emt 0:05:38]} exd5 {[%emt 0:00:13]} 12. Nd2 {[%emt 0:00:05]} c5 {[%emt 0:01:43]} 13. e4 {[%emt 0:01:02]} c4 {[%emt 0:10:38]} 14. Qc2 {[%emt 0:01:35]} dxe4 {[%emt 0:02:44]} 15. Nxe4 {[%emt 0:01:48]} Bd5 {[%emt 0:04:08]} 16. Rfe1 {[%emt 0:06:58]} Nf6 {[%emt 0:03:31]} 17. Rab1 {[%emt 0:06:15]} Nxe4 {[%emt 0:05:38]} 18. Rxe4 {[%emt 0:03:48]} Bxe4 {[%emt 0:02:59]} 19. Bxe4 {[%emt 0:00:06]} Rc8 {[%emt 0:01:37]} 20. Bxh7+ {[%emt 0:01:27]} Kh8 {[%emt 0:00:08]} 21. Qf5 {[%emt 0:06:24]} g5 {[%emt 0:10:36]} 22. Be3 {[%emt 0:09:07]} Qd6 {[%emt 0:05:36]} 23. Qh3 {[%emt 0:02:21]} Kg7 {[%emt 0:02:51]} 24. Bf5 {[%emt 0:00:15]} Rh8 {[%emt 0:02:03]} 25. Qg4 {[%emt 0:00:05]} Qh6 {[%emt 0:03:39]} 26. h4 {[%emt 0:02:31]} Rcd8 {[%emt 0:02:24]} 27. Rb5 {[%emt 0:03:32]} f6 {[%emt 0:17:16]} 28. f4 {[%emt 0:00:07]} Qh5 {[%emt 0:03:25]} 29. fxg5 {[%emt 0:00:17]} Qxg4 {[%emt 0:02:05]} 30. gxf6+ {[%emt 0:00:17]} Bxf6 {[%emt 0:01:27]} 31. Bxg4 {[%emt 0:00:08]} Rhe8 {[%emt 0:00:42]} 32. Kf2 {[%emt 0:01:20]} Re7 {[%emt 0:02:26]} 33. Rb4 {[%emt 0:02:16]} Rde8 {[%emt 0:01:39]} 34. Bd2 {[%emt 0:01:04]} Rf8 {[%emt 0:00:53]} 35. Bf3 {[%emt 0:01:03]} Ref7 {[%emt 0:01:54]} 36. Rxc4 {[%emt 0:06:05]} Be7 {[%emt 0:02:18]} 37. Bf4 {[%emt 0:00:06]} Bxh4 {[%emt 0:00:30]} 38. Be5+ {[%emt 0:00:15]} Bf6 {[%emt 0:00:48]} 39. Bf4 {[%emt 0:02:20]} Bh4 {[%emt 0:00:45]} 40. Be5+ {[%emt 0:00:20]} Bf6 {[%emt 0:00:09]} 1/2-1/2

[Event "French-ch U12-U14 2024"]
[Site "Agen"]
[Date "2024.04.15"]
[Round "3.10"]
[White "Bocquenet-Drouode, Hugo"]
[Black "Nott Peralta, Gabriel"]
[Result "1-0"]
[ECO "D00"]
[WhiteElo "1974"]
[BlackElo "1806"]
[Annotator "NA RC"]
[PlyCount "73"]
[EventDate "2024.04.14"]
[EventType "swiss"]
[EventCountry "FRA"]
[SourceTitle "playchess.com"]
[Source "ChessBase"]
[SourceQuality "1"]
[TimeControl "5400+30"]

1. d4 {[%emt 0:00:02]} Nf6 {[%emt 0:00:12]} 2. Nc3 {[%emt 0:00:05]} d5 {[%emt 0:01:46]} 3. Bf4 {[%emt 0:00:07]} a6 {[%emt 0:02:45]} 4. e3 {[%emt 0:00:11]} e6 {[%emt 0:00:45]} 5. g4 {[%emt 0:00:49]} c5 {[%emt 0:16:27]} 6. g5 {[%emt 0:00:16]} Nfd7 {[%emt 0:02:07]} 7. h4 {[%emt 0:04:13]} Qb6 {[%emt 0:07:38]} 8. a3 {[%emt 0:03:26]} Nc6 {[%emt 0:06:06]} 9. Nf3 {[%emt 0:14:06]} cxd4 {[%emt 0:10:07]} 10. exd4 {[%emt 0:07:55]} Ne7 {[%emt 0:09:02]} 11. h5 {[%emt 0:21:59]} Nb8 {[%emt 0:05:16]} 12. b4 {[%emt 0:09:30]} Bd7 {[%emt 0:04:29]} 13. Ne5 {[%emt 0:01:35]} Nf5 {[%emt 0:01:54]} 14. Bd3 {[%emt 0:16:27]} Qc7 {[%emt 0:14:15]} 15. Ne2 {[%emt 0:01:28]} Bd6 {[%emt 0:02:15]} 16. g6 {[%emt 0:03:04]} fxg6 {[%emt 0:04:08]} 17. hxg6 {[%emt 0:00:42]} Nxd4 {[%emt 0:02:27]} 18. Nf7 {[%emt 0:03:51]} Nf3+ {[%emt 0:00:15]} 19. Kf1 {[%emt 0:00:08]} Bxf4 {[%emt 0:00:12]} 20. Nxh8 {[%emt 0:00:28]} h6 {[%emt 0:00:12]} 21. Rh3 {[%emt 0:05:06]} Ng5 {[%emt 0:01:41]} 22. Rxh6 {[%emt 0:01:01]} Nc6 {[%emt 0:01:18]} 23. Rh4 {[%emt 0:01:18]} Be5 {[%emt 0:00:58]} 24. Rc1 {[%emt 0:01:52]} Bf6 {[%emt 0:01:05]} 25. Rh5 {[%emt 0:01:03]} Ke7 {[%emt 0:01:39]} 26. c4 {[%emt 0:01:33]} d4 {[%emt 0:02:06]} 27. Ng3 {[%emt 0:00:40]} Ne5 {[%emt 0:00:25]} 28. Qe2 {[%emt 0:01:01]} Nxd3 {[%emt 0:00:21]} 29. Qxd3 {[%emt 0:00:05]} Qf4 {[%emt 0:00:39]} 30. Re1 {[%emt 0:00:18]} e5 {[%emt 0:00:25]} 31. Ne2 {[%emt 0:01:00]} Qg4 {[%emt 0:00:23]} 32. Rh1 {[%emt 0:00:30]} Bc6 {[%emt 0:00:20]} 33. Rh2 {[%emt 0:00:30]} Rxh8 {[%emt 0:00:39]} 34. Nxd4 {[%emt 0:00:16]} Rxh2 {[%emt 0:00:26]} 35. Nf5+ {[%emt 0:00:03]} Ke8 {[%emt 0:00:41]} 36. Nd6+ {[%emt 0:00:26]} Kf8 {[%emt 0:00:09]} 37. Qd1 {[%emt 0:01:56]} 1-0

[Event "French-ch U12-U14 2024"]
[Site "Agen"]
[Date "2024.04.15"]
[Round "3.11"]
[White "Bernard, Ines"]
[Black "Nicot, Anna"]
[Result "1/2-1/2"]
[ECO "A80"]
[WhiteElo "1981"]
[BlackElo "1649"]
[Annotator "NA RC"]
[PlyCount "59"]
[EventDate "2024.04.14"]
[EventType "swiss"]
[EventCountry "FRA"]
[SourceTitle "playchess.com"]
[Source "ChessBase"]
[SourceQuality "1"]
[TimeControl "5400+30"]

1. d4 {[%emt 0:00:03]} e6 {[%emt 0:00:05]} 2. Bf4 {[%emt 0:00:05]} f5 {[%emt 0:00:06]} 3. e3 {[%emt 0:00:12]} Nf6 {[%emt 0:00:09]} 4. Bd3 {[%emt 0:00:16]} b6 {[%emt 0:00:18]} 5. c4 {[%emt 0:00:33]} Bb7 {[%emt 0:00:10]} 6. Nf3 {[%emt 0:00:05]} Bd6 {[%emt 0:00:35]} 7. Ne5 {[%emt 0:10:06]} O-O {[%emt 0:00:42]} 8. O-O {[%emt 0:01:17]} Be7 {[%emt 0:00:27]} 9. Nc3 {[%emt 0:01:34]} d6 {[%emt 0:00:18]} 10. Nf3 {[%emt 0:00:21]} Ne4 {[%emt 0:02:31]} 11. Nd2 {[%emt 0:02:52]} Nxc3 {[%emt 0:00:54]} 12. bxc3 {[%emt 0:00:01]} Nd7 {[%emt 0:00:22]} 13. h3 {[%emt 0:01:38]} Nf6 {[%emt 0:00:32]} 14. Qc2 {[%emt 0:07:16]} Qe8 {[%emt 0:08:42]} 15. f3 {[%emt 0:06:46]} Nh5 {[%emt 0:02:14]} 16. Bh2 {[%emt 0:01:38]} Qg6 {[%emt 0:04:32]} 17. e4 {[%emt 0:07:22]} Bg5 {[%emt 0:21:20]} 18. Rfe1 {[%emt 0:07:49]} Bh4 {[%emt 0:00:31]} 19. Re2 {[%emt 0:01:34]} Bg3 {[%emt 0:01:06]} 20. Bxg3 {[%emt 0:03:11]} Qxg3 {[%emt 0:00:09]} 21. Nf1 {[%emt 0:00:08]} Qg5 {[%emt 0:00:30]} 22. Qd2 {[%emt 0:01:36]} Qxd2 {[%emt 0:05:59]} 23. Rxd2 {[%emt 0:00:58]} Nf4 {[%emt 0:00:15]} 24. Bc2 {[%emt 0:01:09]} Ba6 {[%emt 0:00:27]} 25. Ne3 {[%emt 0:01:09]} g6 {[%emt 0:08:34]} 26. Kh2 {[%emt 0:04:32]} Nh5 {[%emt 0:01:47]} 27. Rad1 {[%emt 0:03:27]} f4 {[%emt 0:00:31]} 28. Ng4 {[%emt 0:01:37]} Bxc4 {[%emt 0:00:38]} 29. a3 {[%emt 0:01:33]} Ng3 {[%emt 0:01:37]} 30. Bd3 {[%emt 0:01:31]} 1/2-1/2

[Event "French-ch U12-U14 2024"]
[Site "Agen"]
[Date "2024.04.15"]
[Round "3.12"]
[White "Castagnerol, Cerise"]
[Black "Giafferi Bonnet, Luna"]
[Result "1/2-1/2"]
[ECO "E11"]
[WhiteElo "1755"]
[BlackElo "1640"]
[Annotator "NA RC"]
[PlyCount "118"]
[EventDate "2024.04.14"]
[EventType "swiss"]
[EventCountry "FRA"]
[SourceTitle "playchess.com"]
[Source "ChessBase"]
[SourceQuality "1"]
[TimeControl "5400+30"]

1. d4 {[%emt 0:00:02]} Nf6 {[%emt 0:00:10]} 2. c4 {[%emt 0:00:08]} e6 {[%emt 0:00:24]} 3. Nf3 {[%emt 0:00:21]} Bb4+ {[%emt 0:00:42]} 4. Bd2 {[%emt 0:00:40]} a5 {[%emt 0:01:20]} 5. Nc3 {[%emt 0:00:54]} O-O {[%emt 0:02:01]} 6. e3 {[%emt 0:00:26]} d5 {[%emt 0:02:05]} 7. Bd3 {[%emt 0:01:35]} b6 {[%emt 0:03:45]} 8. O-O {[%emt 0:06:23]} Ba6 {[%emt 0:05:22]} 9. Qe2 {[%emt 0:03:10]} c5 {[%emt 0:06:02]} 10. Rac1 {[%emt 0:05:10]} Nbd7 {[%emt 0:03:28]} 11. a3 {[%emt 0:03:39]} cxd4 {[%emt 0:05:55]} 12. exd4 {[%emt 0:01:47]} Bd6 {[%emt 0:01:19]} 13. cxd5 {[%emt 0:01:19]} Bxd3 {[%emt 0:01:29]} 14. Qxd3 {[%emt 0:00:02]} exd5 {[%emt 0:01:12]} 15. Nb5 {[%emt 0:03:59]} Ne4 {[%emt 0:04:17]} 16. Qb3 {[%emt 0:01:37]} Nxd2 {[%emt 0:03:05]} 17. Nxd2 {[%emt 0:00:03]} Bf4 {[%emt 0:00:44]} 18. Rfd1 {[%emt 0:03:31]} Nf6 {[%emt 0:01:47]} 19. Rc6 {[%emt 0:07:43]} Re8 {[%emt 0:04:39]} 20. Nf3 {[%emt 0:06:13]} Rc8 {[%emt 0:03:56]} 21. Rxc8 {[%emt 0:10:16]} Qxc8 {[%emt 0:00:31]} 22. g3 {[%emt 0:03:54]} Bb8 {[%emt 0:02:53]} 23. Nc3 {[%emt 0:01:41]} Qf5 {[%emt 0:04:24]} 24. Kg2 {[%emt 0:01:02]} Bc7 {[%emt 0:02:26]} 25. Rc1 {[%emt 0:02:18]} Bf4 {[%emt 0:04:39]} 26. Re1 {[%emt 0:03:25]} Rxe1 {[%emt 0:02:40]} 27. Nxe1 {[%emt 0:00:02]} Bc7 {[%emt 0:01:14]} 28. Nf3 {[%emt 0:01:57]} g5 {[%emt 0:03:09]} 29. Ne2 {[%emt 0:11:45]} g4 {[%emt 0:04:15]} 30. Nd2 {[%emt 0:00:52]} Ne4 {[%emt 0:01:33]} 31. Qe3 {[%emt 0:00:23]} Nxd2 {[%emt 0:01:20]} 32. Qxd2 {[%emt 0:00:37]} Qf3+ {[%emt 0:00:42]} 33. Kg1 {[%emt 0:00:15]} h5 {[%emt 0:01:11]} 34. Qe3 {[%emt 0:05:59]} Qf5 {[%emt 0:02:28]} 35. Nc3 {[%emt 0:02:20]} Kg7 {[%emt 0:05:48]} 36. Kg2 {[%emt 0:01:05]} h4 {[%emt 0:02:57]} 37. gxh4 {[%emt 0:01:42]} Bf4 {[%emt 0:02:51]} 38. Qe2 {[%emt 0:02:45]} Qh5 {[%emt 0:00:45]} 39. Qe7 {[%emt 0:01:37]} Qf5 {[%emt 0:02:57]} 40. Qe2 {[%emt 0:02:30]} Qh5 {[%emt 0:00:33]} 41. Kf1 {[%emt 0:01:08]} Qxh4 {[%emt 0:01:10]} 42. Nxd5 {[%emt 0:00:28]} Bxh2 {[%emt 0:01:41]} 43. Nxb6 {[%emt 0:01:34]} Bc7 {[%emt 0:00:22]} 44. Qb5 {[%emt 0:01:07]} Qh1+ {[%emt 0:00:18]} 45. Ke2 {[%emt 0:00:11]} Qe4+ {[%emt 0:00:14]} 46. Kf1 {[%emt 0:00:29]} Qxd4 {[%emt 0:01:00]} 47. Nc4 {[%emt 0:01:44]} Qd1+ {[%emt 0:01:08]} 48. Kg2 {[%emt 0:00:07]} Qf3+ {[%emt 0:00:06]} 49. Kg1 {[%emt 0:01:13]} g3 {[%emt 0:02:26]} 50. Qg5+ {[%emt 0:01:09]} Kh7 {[%emt 0:00:32]} 51. Qh4+ {[%emt 0:00:55]} Kg6 {[%emt 0:00:09]} 52. fxg3 {[%emt 0:00:21]} Bxg3 {[%emt 0:00:27]} 53. Qh3 {[%emt 0:00:55]} Qf2+ {[%emt 0:01:24]} 54. Kh1 {[%emt 0:00:06]} Qf3+ {[%emt 0:00:44]} 55. Qg2 {[%emt 0:00:12]} Qd1+ {[%emt 0:00:20]} 56. Qg1 {[%emt 0:00:08]} Qf3+ {[%emt 0:00:36]} 57. Qg2 {[%emt 0:00:11]} Qd1+ {[%emt 0:00:06]} 58. Qg1 {[%emt 0:00:14]} Qf3+ {[%emt 0:00:12]} 59. Qg2 {[%emt 0:00:21]} Qd1+ {[%emt 0:00:17]} 1/2-1/2

[Event "French-ch U12-U14 2024"]
[Site "Agen"]
[Date "2024.04.15"]
[Round "3.13"]
[White "Pauly, Juliette"]
[Black "Maret, Anna"]
[Result "1-0"]
[ECO "A76"]
[WhiteElo "1617"]
[BlackElo "1749"]
[Annotator "NA RC"]
[PlyCount "73"]
[EventDate "2024.04.14"]
[EventType "swiss"]
[EventCountry "FRA"]
[SourceTitle "playchess.com"]
[Source "ChessBase"]
[SourceQuality "1"]
[TimeControl "5400+30"]

1. d4 {[%emt 0:00:03]} Nf6 {[%emt 0:00:56]} 2. c4 {[%emt 0:00:08]} c5 {[%emt 0:00:04]} 3. d5 {[%emt 0:00:06]} e6 {[%emt 0:00:08]} 4. Nc3 {[%emt 0:03:33]} exd5 {[%emt 0:00:18]} 5. cxd5 {[%emt 0:01:38]} d6 {[%emt 0:00:05]} 6. e4 {[%emt 0:01:53]} g6 {[%emt 0:00:04]} 7. Nf3 {[%emt 0:00:41]} Bg7 {[%emt 0:00:05]} 8. Be2 {[%emt 0:00:19]} O-O {[%emt 0:00:12]} 9. O-O {[%emt 0:00:42]} Re8 {[%emt 0:00:07]} 10. Qc2 {[%emt 0:07:01]} a6 {[%emt 0:02:21]} 11. a4 {[%emt 0:03:14]} Nbd7 {[%emt 0:02:37]} 12. Bf4 {[%emt 0:08:25]} Nf8 {[%emt 0:04:31]} 13. Nd2 {[%emt 0:08:14]} Ng4 {[%emt 0:15:34]} 14. Bxg4 {[%emt 0:07:48]} Bxg4 {[%emt 0:05:13]} 15. Nc4 {[%emt 0:08:40]} Be5 {[%emt 0:06:41]} 16. Nxe5 {[%emt 0:09:09]} dxe5 {[%emt 0:00:07]} 17. Bh6 {[%emt 0:01:08]} g5 {[%emt 0:03:09]} 18. Qd2 {[%emt 0:01:01]} f6 {[%emt 0:00:32]} 19. Qe3 {[%emt 0:03:48]} Qc8 {[%emt 0:11:24]} 20. Qg3 {[%emt 0:03:28]} Kf7 {[%emt 0:00:35]} 21. f3 {[%emt 0:01:32]} Bd7 {[%emt 0:02:32]} 22. h4 {[%emt 0:00:33]} Ng6 {[%emt 0:04:39]} 23. hxg5 {[%emt 0:00:44]} Rg8 {[%emt 0:01:11]} 24. f4 {[%emt 0:12:11]} fxg5 {[%emt 0:07:32]} 25. fxe5+ {[%emt 0:01:28]} Ke8 {[%emt 0:00:52]} 26. Qxg5 {[%emt 0:01:17]} Ne7 {[%emt 0:00:21]} 27. Qf6 {[%emt 0:03:15]} Bg4 {[%emt 0:03:07]} 28. Bg5 {[%emt 0:03:56]} Qd7 {[%emt 0:01:56]} 29. Qf7+ {[%emt 0:00:02]} Kd8 {[%emt 0:00:39]} 30. Bxe7+ {[%emt 0:00:08]} Kc7 {[%emt 0:00:21]} 31. Bd6+ {[%emt 0:00:56]} Kb6 {[%emt 0:00:22]} 32. a5+ {[%emt 0:00:16]} Ka7 {[%emt 0:00:16]} 33. Bxc5+ {[%emt 0:00:04]} b6 {[%emt 0:00:09]} 34. axb6+ {[%emt 0:00:37]} Kb7 {[%emt 0:00:11]} 35. Qxd7+ {[%emt 0:00:29]} Bxd7 {[%emt 0:00:07]} 36. Rf7 {[%emt 0:00:18]} Kc8 {[%emt 0:00:06]} 37. e6 {[%emt 0:00:23]} 1-0

[Event "French-ch U12-U14 2024"]
[Site "Agen"]
[Date "2024.04.15"]
[Round "3.14"]
[White "Pereira Garza, Cecilia"]
[Black "Kirschner, Sarah"]
[Result "1/2-1/2"]
[ECO "D27"]
[WhiteElo "1725"]
[BlackElo "1612"]
[Annotator "NA RC"]
[PlyCount "67"]
[EventDate "2024.04.14"]
[EventType "swiss"]
[EventCountry "FRA"]
[SourceTitle "playchess.com"]
[Source "ChessBase"]
[SourceQuality "1"]
[TimeControl "5400+30"]

1. d4 {[%emt 0:00:02]} d5 {[%emt 0:00:16]} 2. c4 {[%emt 0:00:06]} dxc4 {[%emt 0:00:33]} 3. Nf3 {[%emt 0:01:04]} Nf6 {[%emt 0:02:06]} 4. e3 {[%emt 0:01:28]} e6 {[%emt 0:00:42]} 5. Bxc4 {[%emt 0:00:22]} c5 {[%emt 0:00:57]} 6. O-O {[%emt 0:00:47]} a6 {[%emt 0:00:47]} 7. a4 {[%emt 0:01:51]} Nbd7 {[%emt 0:04:48]} 8. Nc3 {[%emt 0:02:11]} Be7 {[%emt 0:02:50]} 9. d5 {[%emt 0:08:39]} Nb6 {[%emt 0:03:56]} 10. Ba2 {[%emt 0:01:45]} Nbxd5 {[%emt 0:02:41]} 11. Nxd5 {[%emt 0:02:15]} exd5 {[%emt 0:00:56]} 12. Ne5 {[%emt 0:02:12]} O-O {[%emt 0:04:52]} 13. f4 {[%emt 0:03:28]} Bd6 {[%emt 0:12:29]} 14. Bxd5 {[%emt 0:05:09]} Bxe5 {[%emt 0:02:24]} 15. Bxf7+ {[%emt 0:00:19]} Kxf7 {[%emt 0:01:05]} 16. Qxd8 {[%emt 0:00:11]} Rxd8 {[%emt 0:01:01]} 17. fxe5 {[%emt 0:00:08]} Be6 {[%emt 0:03:20]} 18. exf6 {[%emt 0:00:16]} gxf6 {[%emt 0:00:45]} 19. h3 {[%emt 0:01:48]} Rg8 {[%emt 0:00:29]} 20. Kh2 {[%emt 0:02:33]} Bd5 {[%emt 0:01:33]} 21. Rf2 {[%emt 0:00:13]} b5 {[%emt 0:02:47]} 22. Bd2 {[%emt 0:03:06]} Ke6 {[%emt 0:02:46]} 23. Rc1 {[%emt 0:01:21]} c4 {[%emt 0:03:03]} 24. a5 {[%emt 0:01:18]} Rad8 {[%emt 0:01:39]} 25. Bc3 {[%emt 0:01:39]} f5 {[%emt 0:01:28]} 26. g3 {[%emt 0:03:25]} Rg6 {[%emt 0:02:25]} 27. Rd1 {[%emt 0:02:17]} Rdg8 {[%emt 0:01:33]} 28. Rfd2 {[%emt 0:00:37]} Bc6 {[%emt 0:02:15]} 29. Rd6+ {[%emt 0:00:10]} Kf7 {[%emt 0:01:09]} 30. Rxg6 {[%emt 0:02:20]} Rxg6 {[%emt 0:00:48]} 31. Rd8 {[%emt 0:01:13]} Re6 {[%emt 0:02:03]} 32. Bd4 {[%emt 0:00:09]} Re8 {[%emt 0:02:37]} 33. Rd6 {[%emt 0:00:40]} Re6 {[%emt 0:00:34]} 34. Rxe6 {[%emt 0:00:35]} 1/2-1/2

[Event "French-ch U12-U14 2024"]
[Site "Agen"]
[Date "2024.04.15"]
[Round "3.15"]
[White "Strievi, Leonie"]
[Black "Dubin, Lisa"]
[Result "1-0"]
[ECO "C41"]
[WhiteElo "1602"]
[BlackElo "1711"]
[Annotator "NA RC"]
[PlyCount "45"]
[EventDate "2024.04.14"]
[EventType "swiss"]
[EventCountry "FRA"]
[SourceTitle "playchess.com"]
[Source "ChessBase"]
[SourceQuality "1"]
[TimeControl "5400+30"]

1. e4 {[%emt 0:00:03]} d6 {[%emt 0:00:05]} 2. d4 {[%emt 0:00:11]} Nf6 {[%emt 0:00:06]} 3. Nc3 {[%emt 0:00:30]} Nbd7 {[%emt 0:00:38]} 4. Nf3 {[%emt 0:01:21]} e5 {[%emt 0:00:19]} 5. Bc4 {[%emt 0:02:07]} Be7 {[%emt 0:00:10]} 6. O-O {[%emt 0:02:27]} c6 {[%emt 0:00:30]} 7. dxe5 {[%emt 0:02:32]} dxe5 {[%emt 0:00:19]} 8. a4 {[%emt 0:02:29]} O-O {[%emt 0:01:47]} 9. Re1 {[%emt 0:06:29]} Qc7 {[%emt 0:03:58]} 10. Bg5 {[%emt 0:02:43]} a5 {[%emt 0:02:52]} 11. Ne2 {[%emt 0:07:05]} h6 {[%emt 0:20:21]} 12. Bh4 {[%emt 0:01:24]} g5 {[%emt 0:02:11]} 13. Bg3 {[%emt 0:03:34]} Nxe4 {[%emt 0:02:50]} 14. Qd3 {[%emt 0:03:33]} Nec5 {[%emt 0:20:26]} 15. Qg6+ {[%emt 0:01:48]} Kh8 {[%emt 0:00:40]} 16. Qxh6+ {[%emt 0:02:51]} Kg8 {[%emt 0:00:04]} 17. Qg6+ {[%emt 0:00:50]} Kh8 {[%emt 0:00:07]} 18. Bxf7 {[%emt 0:00:22]} Qd6 {[%emt 0:12:29]} 19. Qh5+ {[%emt 0:00:21]} Kg7 {[%emt 0:00:33]} 20. Nxe5 {[%emt 0:10:27]} Qf6 {[%emt 0:07:58]} 21. Nd4 {[%emt 0:14:32]} Rxf7 {[%emt 0:05:01]} 22. Nxf7 {[%emt 0:00:09]} Qxf7 {[%emt 0:00:45]} 23. Rxe7 {[%emt 0:00:11]} 1-0